fUSD/lending_fUSD_20260406
["ID","MTS","AMOUNT","RATE_DAILY","PERIOD"]
[419907956,1775496653906,-1592.87721993,0.00015235,2]
[419907957,1775496653916,-200.0,0.00015235,2]
[419907958,1775496653926,-201.93286099,0.00015235,2]
[419907959,1775496653936,-787.35032651,0.0001526,2]
[419907960,1775496653947,-150.0,0.0001529,2]
[419907961,1775496653956,-2000.0,0.000153,2]
[419907962,1775496653967,-4434.506,0.00015306,2]
[419907963,1775496653976,-266.536,0.00015306,2]
[419907964,1775496653986,-787.35032651,0.00015315,2]
[419907965,1775496653996,-150.0,0.00015326,2]
[419907966,1775496654006,-1000.0,0.00015326,2]
[419907967,1775496654016,-1000.0,0.00015331,2]
[419907968,1775496654026,-150.0,0.00015333,2]
[419907969,1775496654035,-24269.42299238,0.00015333,2]
[419907970,1775496654045,-500.0,0.00015342,2]
[419907971,1775496654055,-500.0,0.00015342,2]
[419907972,1775496654065,-500.0,0.00015342,2]
[419907973,1775496654076,-2000.0,0.00015342,2]
[419907974,1775496654086,-1017.22837258,0.00015342,2]
[419907975,1775496654096,-787.35032651,0.0001537,2]
[419907976,1775496654107,-1000.0,0.00015392,2]
[419907977,1775496654117,-1000.0,0.00015398,2]
[419907978,1775496654127,-1000.0,0.000154,2]
[419907979,1775496654137,-1000.0,0.00015408,2]
[419907980,1775496654147,-150.0,0.00015411,2]
[419907981,1775496654157,-565.0,0.00015419,2]
[419907982,1775496654167,-1496.0,0.00015419,2]
[419907983,1775496654178,-1000.0,0.00015428,2]
[419907984,1775496654187,-1000.0,0.00015441,2]
[419907985,1775496654198,-1000.0,0.00015447,2]
[419907986,1775496654208,-1000.0,0.00015451,2]
[419907987,1775496654218,-787.35032651,0.00015452,2]
[419907988,1775496654228,-350.0,0.00015453,2]
[419907989,1775496654238,-1000.0,0.00015454,2]
[419907990,1775496654248,-1000.0,0.00015461,2]
[419907991,1775496654258,-1000.0,0.00015467,2]
[419907992,1775496654268,-1000.0,0.0001547,2]
[419907993,1775496654278,-1000.0,0.00015477,2]
[419907994,1775496654288,-4300.0,0.000155,5]
[419907995,1775496654298,-3000.0,0.000155,5]
[419907996,1775496654308,-787.35032651,0.00015507,2]
[419907997,1775496654318,-1442.0,0.00015516,2]
[419907998,1775496654328,-150.0,0.00015517,2]
[419907999,1775496654338,-1442.0,0.00015523,2]
[419908000,1775496654347,-1000.0,0.00015553,2]
[419908001,1775496654357,-787.35032651,0.00015562,2]
[419908002,1775496654366,-502.59752033,0.00015568,2]
[419908003,1775496654376,-500.0,0.00015568,2]
[419908004,1775496654386,-678.69264961,0.00015568,2]
[419908005,1775496654396,-152.0,0.00015574,11]
[419908006,1775496654407,-1000.0,0.00015592,2]
[419908007,1775496654417,-1000.0,0.00015595,2]
[419908008,1775496654427,-1000.0,0.000156,2]
[419908009,1775496654436,-800.0,0.000156,5]
[419908010,1775496654446,-600.0,0.000156,5]
[419908011,1775496654455,-1000.0,0.00015614,2]
[419908012,1775496654465,-787.35032651,0.00015616,2]
[419908013,1775496654475,-151.0,0.00015627,2]
[419908014,1775496654484,-1000.0,0.00015628,2]
[419908015,1775496654494,-1000.0,0.00015628,2]
[419908016,1775496654503,-1442.0,0.0001563,2]
[419908017,1775496654513,-1000.0,0.00015637,2]
[419908018,1775496654523,-200.0,0.00015641,2]
[419908019,1775496654533,-200.0,0.00015644,2]
[419908020,1775496654543,-200.0,0.00015644,2]
[419908021,1775496654553,-1442.0,0.00015649,2]
[419908022,1775496654563,-150.0,0.00015661,2]
[419908023,1775496654573,-1000.0,0.00015664,2]
[419908024,1775496654583,-1000.0,0.00015669,2]
[419908025,1775496654592,-1000.0,0.00015672,2]
[419908026,1775496654602,-1000.0,0.00015673,2]
[419908027,1775496654612,-4515.85202543,0.0001568,2]
[419908028,1775496654623,-162.0,0.0001568,2]
[419908029,1775496654633,-2811.0,0.0001568,2]
[419908030,1775496654643,-1573.0,0.0001568,2]
[419908031,1775496654653,-2081.0,0.0001568,2]
[419908032,1775496654663,-1058.35057271,0.0001568,2]
[419908033,1775496654672,-1098.75693274,0.0001568,2]
[419908034,1775496654683,-1146.48239349,0.0001568,2]
[419908035,1775496654692,-1004.59254087,0.0001568,2]
[419908036,1775496654702,-1098.15478223,0.0001568,2]
[419908037,1775496654713,-1049.08013849,0.0001568,2]
[419908038,1775496654723,-1143.51166636,0.0001568,2]
[419908039,1775496654734,-1101.14834911,0.0001568,2]
[419908040,1775496654744,-1054.01385282,0.0001568,2]
[419908041,1775496654754,-1103.99097668,0.0001568,2]
[419908042,1775496654764,-1147.75443686,0.0001568,2]
[419908043,1775496654774,-1084.26975517,0.0001568,2]
[419908044,1775496654784,-1041.84559403,0.0001568,2]
[419908045,1775496654794,-1118.40397816,0.0001568,2]
[419908046,1775496654804,-1015.16236412,0.0001568,2]
[419908047,1775496654814,-1149.36775233,0.0001568,2]
[419908048,1775496654824,-1076.16552666,0.0001568,2]
[419908049,1775496654834,-1537.28320236,0.0001568,2]
[419908050,1775496654843,-1000.0,0.00015683,2]
[419908051,1775496654853,-156.8971398,0.00015697,2]
[419908052,1775496654863,-787.35032651,0.00015699,2]
[419908053,1775496654873,-500.0,0.00015699,2]
[419908054,1775496654883,-500.0,0.00015699,2]
[419908055,1775496654892,-800.0,0.000157,5]
[419908056,1775496654902,-600.0,0.000157,5]
[419908057,1775496654913,-1000.0,0.00015702,2]
[419908058,1775496654923,-1000.0,0.00015706,2]
[419908059,1775496654932,-1442.0,0.00015708,2]
[419908060,1775496654942,-1000.0,0.00015715,2]
[419908061,1775496654952,-1252.0,0.00015726,2]
[419908062,1775496654961,-1000.0,0.00015727,2]
[419908063,1775496654970,-1442.0,0.00015732,2]
[419908064,1775496654980,-1000.0,0.0001575,2]
[419908065,1775496654990,-1000.0,0.0001575,2]
[419908066,1775496655000,-1000.0,0.00015752,2]
[419908067,1775496655010,-1527.17,0.00015753,2]
[419908068,1775496655020,-787.35032651,0.00015753,2]
[419908069,1775496655030,-1442.0,0.00015762,2]
[419908070,1775496655041,-1442.0,0.00015765,2]
[419908071,1775496655050,-1442.0,0.00015765,2]
[419908072,1775496655060,-1000.0,0.00015769,2]
[419908073,1775496655070,-1000.0,0.00015769,2]
[419908074,1775496655079,-1000.0,0.00015769,2]
[419908075,1775496655089,-1000.0,0.00015769,2]
[419908076,1775496655099,-1000.0,0.00015769,2]
[419908077,1775496655108,-1000.0,0.00015769,2]
[419908078,1775496655119,-1000.0,0.00015769,2]
[419908079,1775496655129,-266.452,0.00015769,2]
[419908080,1775496655139,-483.87,0.00015778,2]
[419908081,1775496655148,-483.87,0.00015778,2]
[419908082,1775496655159,-483.87,0.00015778,2]
[419908083,1775496655168,-483.87,0.00015778,2]
[419908084,1775496655178,-483.86,0.00015778,2]
[419908085,1775496655188,-151.0,0.00015782,2]
[419908086,1775496655198,-151.0,0.00015782,2]
[419908087,1775496655208,-454.96662,0.00015782,2]
[419908088,1775496655218,-235.211948,0.00015782,2]
[419908089,1775496655228,-151.0,0.00015782,2]
[419908090,1775496655237,-454.96662,0.00015782,2]
[419908091,1775496655247,-235.211948,0.00015782,2]
[419908092,1775496655257,-151.0,0.00015782,2]
[419908093,1775496655267,-454.96662,0.00015782,2]
[419908094,1775496655277,-235.211948,0.00015782,2]
[419908095,1775496655287,-151.0,0.00015782,2]
[419908096,1775496655296,-232.534013,0.00015782,2]
[419908097,1775496655306,-249.840512,0.00015782,2]
[419908098,1775496655316,-454.96662,0.00015782,2]
[419908099,1775496655326,-235.211948,0.00015782,2]
[419908100,1775496655335,-232.534013,0.00015782,2]
[419908101,1775496655345,-151.0,0.00015782,2]
[419908102,1775496655354,-232.534013,0.00015782,2]
[419908103,1775496655363,-222.045865,0.00015782,2]
[419908104,1775496655372,-232.534013,0.00015782,2]
[419908105,1775496655382,-151.0,0.00015782,2]
[419908106,1775496655391,-151.0,0.00015782,2]
[419908107,1775496655400,-151.0,0.00015782,2]
[419908108,1775496655410,-151.0,0.00015782,2]
[419908109,1775496655419,-151.0,0.00015782,2]
[419908110,1775496655429,-165.831226,0.00015782,2]
[419908111,1775496655439,-151.256373,0.00015782,2]
[419908112,1775496655449,-192.312443,0.00015782,2]
[419908113,1775496655459,-585.190594,0.00015782,2]
[419908114,1775496655469,-151.0,0.00015782,2]
[419908115,1775496655479,-151.0,0.00015782,2]
[419908116,1775496655489,-585.190594,0.00015782,2]
[419908117,1775496655497,-585.190594,0.00015782,2]
[419908118,1775496655507,-151.0,0.00015782,2]
[419908119,1775496655517,-585.190594,0.00015782,2]
[419908120,1775496655527,-151.0,0.00015782,2]
[419908121,1775496655537,-151.0,0.00015782,2]
[419908122,1775496655547,-599.60298507,0.00015782,2]
[419908123,1775496655557,-721.12765535,0.00015782,2]
[419908124,1775496655567,-1651.81367706,0.00015783,2]
[419908125,1775496655578,-200.0,0.00015783,2]
[419908126,1775496655588,-209.40437684,0.00015783,2]
[419908127,1775496655598,-545.409279,0.00015784,2]
[419908128,1775496655607,-1715.941805,0.00015784,2]
[419908129,1775496655617,-545.409279,0.00015784,2]
[419908130,1775496655627,-1715.941805,0.00015784,2]
[419908131,1775496655637,-545.409279,0.00015784,2]
[419908132,1775496655647,-1715.941805,0.00015784,2]
[419908133,1775496655657,-545.409279,0.00015784,2]
[419908134,1775496655667,-1715.941805,0.00015784,2]
[419908135,1775496655676,-151.0,0.00015784,2]
[419908136,1775496655687,-1324.90173,0.00015784,2]
[419908137,1775496655697,-222.476936,0.00015784,2]
[419908138,1775496655707,-151.0,0.00015784,2]
[419908139,1775496655716,-1324.90173,0.00015784,2]
[419908140,1775496655727,-151.0,0.00015784,2]
[419908141,1775496655738,-1324.90173,0.00015784,2]
[419908142,1775496655748,-151.0,0.00015784,2]
[419908143,1775496655758,-1324.90173,0.00015784,2]
[419908144,1775496655768,-310.094312,0.00015784,2]
[419908145,1775496656052,-155.746075,0.00015784,2]
[419908146,1775496656061,-248.721184,0.00015784,2]
[419908147,1775496656071,-310.094312,0.00015784,2]
[419908148,1775496656080,-310.094312,0.00015784,2]
[419908149,1775496656090,-310.094312,0.00015784,2]
[419908150,1775496656099,-151.0,0.00015784,2]
[419908151,1775496656108,-729.469798,0.00015784,2]
[419908152,1775496656118,-729.469798,0.00015784,2]
[419908153,1775496656128,-729.469798,0.00015784,2]
[419908154,1775496656138,-729.469798,0.00015784,2]
[419908155,1775496656147,-151.0,0.00015784,2]
[419908156,1775496656157,-151.0,0.00015784,2]
[419908157,1775496656167,-254.207423,0.00015784,2]
[419908158,1775496656177,-254.207423,0.00015784,2]
[419908159,1775496656187,-254.207423,0.00015784,2]
[419908160,1775496656196,-254.207423,0.00015784,2]
[419908161,1775496656206,-386.067913,0.00015784,2]
[419908162,1775496656216,-386.067913,0.00015784,2]
[419908163,1775496656226,-386.067913,0.00015784,2]
[419908164,1775496656236,-386.067913,0.00015784,2]
[419908165,1775496656246,-400.0924253,0.00015791,2]
[419908166,1775496656255,-1000.0,0.00015795,2]
[419908167,1775496656264,-800.0,0.000158,5]
[419908168,1775496656274,-600.0,0.000158,5]
[419908169,1775496656284,-1000.0,0.00015808,2]
[419908170,1775496656293,-387.488501,0.00015808,2]
[419908171,1775496656302,-151.0,0.00015808,2]
[419908172,1775496656312,-387.488501,0.00015808,2]
[419908173,1775496656321,-520.378138,0.00015808,2]
[419908174,1775496656331,-387.488501,0.00015808,2]
[419908175,1775496656340,-225.159939,0.00015808,2]
[419908176,1775496656350,-520.378138,0.00015808,2]
[419908177,1775496656359,-151.0,0.00015808,2]
[419908178,1775496656368,-151.0,0.00015808,2]
[419908179,1775496656378,-387.488501,0.00015808,2]
[419908180,1775496656387,-225.159939,0.00015808,2]
[419908181,1775496656396,-520.378138,0.00015808,2]
[419908182,1775496656406,-151.0,0.00015808,2]
[419908183,1775496656416,-151.0,0.00015808,2]
[419908184,1775496656426,-225.159939,0.00015808,2]
[419908185,1775496656436,-520.378138,0.00015808,2]
[419908186,1775496656446,-151.0,0.00015808,2]
[419908187,1775496656455,-225.159939,0.00015808,2]
[419908188,1775496656465,-2180.552252,0.00015808,2]
[419908189,1775496656474,-155.71659,0.00015808,2]
[419908190,1775496656483,-151.0,0.00015808,2]
[419908191,1775496656493,-2180.552252,0.00015808,2]
[419908192,1775496656503,-155.71659,0.00015808,2]
[419908193,1775496656512,-151.0,0.00015808,2]
[419908194,1775496656522,-2180.552252,0.00015808,2]
[419908195,1775496656534,-155.71659,0.00015808,2]
[419908196,1775496656543,-2180.552252,0.00015808,2]
[419908197,1775496656553,-151.0,0.00015808,2]
[419908198,1775496656563,-155.71659,0.00015808,2]
[419908199,1775496656572,-151.0,0.00015808,2]
[419908200,1775496656582,-151.0,0.00015808,2]
[419908201,1775496656591,-151.0,0.00015808,2]
[419908202,1775496656602,-151.0,0.00015808,2]
[419908203,1775496656611,-151.0,0.00015808,2]
[419908204,1775496656621,-151.0,0.00015808,2]
[419908205,1775496656631,-829.030432,0.00015808,2]
[419908206,1775496656640,-829.030432,0.00015808,2]
[419908207,1775496656650,-190.410851,0.00015808,2]
[419908208,1775496656660,-829.030432,0.00015808,2]
[419908209,1775496656671,-190.410851,0.00015808,2]
[419908210,1775496656682,-829.030432,0.00015808,2]
[419908211,1775496656692,-190.410851,0.00015808,2]
[419908212,1775496656702,-416.609906,0.00015808,2]
[419908213,1775496656712,-1038.983212,0.00015808,2]
[419908214,1775496656722,-151.0,0.00015808,2]
[419908215,1775496656733,-1202.256682,0.00015808,2]
[419908216,1775496656743,-190.410851,0.00015808,2]
[419908217,1775496656753,-416.609906,0.00015808,2]
[419908218,1775496656763,-1038.983212,0.00015808,2]
[419908219,1775496656774,-151.0,0.00015808,2]
[419908220,1775496656784,-1202.256682,0.00015808,2]
[419908221,1775496656793,-416.609906,0.00015808,2]
[419908222,1775496656803,-1038.983212,0.00015808,2]
[419908223,1775496656812,-1202.256682,0.00015808,2]
[419908224,1775496656822,-151.0,0.00015808,2]
[419908225,1775496656832,-617.722164,0.00015808,2]
[419908226,1775496656842,-272.719027,0.00015808,2]
[419908227,1775496656851,-268.8,0.00015808,2]
[419908228,1775496656861,-1038.983212,0.00015808,2]
[419908229,1775496656871,-416.609906,0.00015808,2]
[419908230,1775496656881,-1202.256682,0.00015808,2]
[419908231,1775496656891,-156.226732,0.00015808,2]
[419908232,1775496656901,-617.722164,0.00015808,2]
[419908233,1775496656911,-272.719027,0.00015808,2]
[419908234,1775496656921,-268.8,0.00015808,2]
[419908235,1775496656930,-617.722164,0.00015808,2]
[419908236,1775496656940,-272.719027,0.00015808,2]
[419908237,1775496656951,-151.0,0.00015808,2]
[419908238,1775496656961,-268.8,0.00015808,2]
[419908239,1775496656971,-415.848129,0.00015808,2]
[419908240,1775496656980,-151.0,0.00015808,2]
[419908241,1775496656990,-272.719027,0.00015808,2]
[419908242,1775496657000,-151.0,0.00015808,2]
[419908243,1775496657010,-268.8,0.00015808,2]
[419908244,1775496657020,-415.848129,0.00015808,2]
[419908245,1775496657030,-415.848129,0.00015808,2]
[419908246,1775496657040,-415.848129,0.00015808,2]
[419908247,1775496657050,-787.35032651,0.00015808,2]
[419908248,1775496657060,-1000.0,0.00015809,2]
[419908249,1775496657069,-350.0,0.00015814,3]
[419908250,1775496657078,-150.0,0.00015821,2]
[419908251,1775496657088,-294.02,0.00015825,2]
[419908252,1775496657098,-2000.0,0.0001584,2]
[419908253,1775496657107,-2000.0,0.0001584,2]
[419908254,1775496657117,-246.20591541,0.0001584,2]
[419908255,1775496657126,-570.79309048,0.00015849,2]
[419908256,1775496657136,-2000.0,0.0001585,2]
[419908257,1775496657145,-1000.0,0.00015859,2]
[419908258,1775496657155,-1347.12,0.00015862,2]
[419908259,1775496657165,-1000.0,0.00015862,2]
[419908260,1775496657174,-787.35032651,0.00015863,2]
[419908261,1775496657184,-1442.0,0.00015864,2]
[419908262,1775496657194,-1442.0,0.00015867,2]
[419908263,1775496657203,-1442.0,0.00015871,2]
[419908264,1775496657212,-500.0,0.00015871,2]
[419908265,1775496657222,-200.0,0.00015871,2]
[419908266,1775496657230,-500.0,0.00015872,2]
[419908267,1775496657240,-500.0,0.00015872,2]
[419908268,1775496657250,-500.0,0.00015872,2]
[419908269,1775496657259,-200.0,0.00015872,2]
[419908270,1775496657269,-150.0,0.00015875,2]
[419908271,1775496657278,-1000.0,0.00015876,2]
[419908272,1775496657288,-500.0,0.00015887,4]
[419908273,1775496657297,-193.9084,0.0001589,2]
[419908274,1775496657307,-500.0,0.0001589,2]
[419908275,1775496657316,-500.0,0.0001589,2]
[419908276,1775496657326,-500.0,0.0001589,2]
[419908277,1775496657335,-500.0,0.0001589,2]
[419908278,1775496657344,-500.0,0.0001589,2]
[419908279,1775496657353,-500.0,0.0001589,2]
[419908280,1775496657363,-500.0,0.0001589,2]
[419908281,1775496657372,-500.0,0.0001589,2]
[419908282,1775496657381,-500.0,0.0001589,2]
[419908283,1775496657390,-500.0,0.0001589,2]
[419908284,1775496657400,-151.0,0.0001589,2]
[419908285,1775496657409,-2987.526904,0.0001589,2]
[419908286,1775496657418,-2987.526904,0.0001589,2]
[419908287,1775496657428,-151.0,0.0001589,2]
[419908288,1775496657437,-151.0,0.0001589,2]
[419908289,1775496657447,-2987.526904,0.0001589,2]
[419908290,1775496657457,-151.0,0.0001589,2]
[419908291,1775496657466,-2987.526904,0.0001589,2]
[419908292,1775496657475,-151.0,0.0001589,2]
[419908293,1775496657484,-151.0,0.0001589,2]
[419908294,1775496657493,-246.638861,0.0001589,2]
[419908295,1775496657503,-151.0,0.0001589,2]
[419908296,1775496657513,-246.638861,0.0001589,2]
[419908297,1775496657523,-151.0,0.0001589,2]
[419908298,1775496657533,-246.638861,0.0001589,2]
[419908299,1775496657542,-151.0,0.0001589,2]
[419908300,1775496657552,-151.0,0.0001589,2]
[419908301,1775496657561,-151.0,0.0001589,2]
[419908302,1775496657571,-151.0,0.0001589,2]
[419908303,1775496657581,-281.27158,0.0001589,2]
[419908304,1775496657591,-246.638861,0.0001589,2]
[419908305,1775496657600,-151.0,0.0001589,2]
[419908306,1775496657610,-2500.0,0.0001589,2]
[419908307,1775496657620,-553.482395,0.00015891,2]
[419908308,1775496657630,-402.8195,0.00015891,2]
[419908309,1775496657640,-151.0,0.00015891,2]
[419908310,1775496657650,-553.482395,0.00015891,2]
[419908311,1775496657661,-402.8195,0.00015891,2]
[419908312,1775496657671,-261.551929,0.00015891,2]
[419908313,1775496657680,-151.0,0.00015891,2]
[419908314,1775496657690,-553.482395,0.00015891,2]
[419908315,1775496657700,-402.8195,0.00015891,2]
[419908316,1775496657711,-253.665438,0.00015891,2]
[419908317,1775496657720,-261.551929,0.00015891,2]
[419908318,1775496657730,-553.482395,0.00015891,2]
[419908319,1775496657741,-2928.765062,0.00015891,2]
[419908320,1775496657751,-151.0,0.00015891,2]
[419908321,1775496657760,-402.8195,0.00015891,2]
[419908322,1775496657770,-253.665438,0.00015891,2]
[419908323,1775496657781,-261.551929,0.00015891,2]
[419908324,1775496657790,-2928.765062,0.00015891,2]
[419908325,1775496657799,-151.0,0.00015891,2]
[419908326,1775496657809,-253.665438,0.00015891,2]
[419908327,1775496657818,-2928.765062,0.00015891,2]
[419908328,1775496657828,-151.0,0.00015891,2]
[419908329,1775496657838,-25000.0,0.00015891,3]
[419908330,1775496657847,-1000.0,0.00015898,2]
[419908331,1775496657857,-500.0,0.00015899,2]
[419908332,1775496657867,-500.0,0.00015899,2]
[419908333,1775496657876,-348.586408,0.00015899,2]
[419908334,1775496657886,-500.0,0.00015899,2]
[419908335,1775496657896,-5800.0,0.000159,2]
[419908336,1775496657905,-25000.0,0.000159,3]
[419908337,1775496657914,-344.12797301,0.000159,2]
[419908338,1775496657924,-150.0,0.000159,2]
[419908339,1775496657934,-151.0,0.000159,2]
[419908340,1775496657943,-151.0,0.000159,2]
[419908341,1775496657952,-151.0,0.000159,2]
[419908342,1775496657962,-151.0,0.000159,2]
[419908343,1775496657972,-151.0,0.000159,2]
[419908344,1775496657981,-201.754288,0.000159,2]
[419908345,1775496657991,-201.754288,0.000159,2]
[419908346,1775496658000,-201.754288,0.000159,2]
[419908347,1775496658010,-201.754288,0.000159,2]
[419908348,1775496658020,-800.0,0.000159,5]
[419908349,1775496658031,-453.94719217,0.000159,2]
[419908350,1775496658041,-453.9471921,0.000159,2]
[419908351,1775496658052,-453.9471921,0.000159,2]
[419908352,1775496658062,-25000.0,0.000159,3]
[419908353,1775496658072,-453.9471921,0.000159,2]
[419908354,1775496658083,-453.9471921,0.000159,2]
[419908355,1775496658092,-5372.50071432,0.000159,2]
[419908356,1775496658102,-453.9471921,0.000159,2]
[419908357,1775496658112,-453.9471921,0.000159,2]
[419908358,1775496658121,-453.9471921,0.000159,2]
[419908359,1775496658131,-151.0,0.000159,2]
[419908360,1775496658575,-453.9471921,0.000159,2]
[419908361,1775496658585,-151.0,0.000159,2]
[419908362,1775496658595,-151.0,0.000159,2]
[419908363,1775496658605,-453.9471921,0.000159,2]
[419908364,1775496658615,-270.612508,0.000159,2]
[419908365,1775496658625,-276.32838,0.000159,2]
[419908366,1775496658636,-600.0,0.000159,5]
[419908367,1775496658646,-276.32838,0.000159,2]
[419908368,1775496658657,-453.9471921,0.000159,2]
[419908369,1775496658667,-276.32838,0.000159,2]
[419908370,1775496658677,-276.32838,0.000159,2]
[419908371,1775496658687,-151.0,0.000159,2]
[419908372,1775496658696,-151.0,0.000159,2]
[419908373,1775496658706,-453.9471921,0.000159,2]
[419908374,1775496658718,-151.0,0.000159,2]
[419908375,1775496658728,-151.0,0.000159,2]
[419908376,1775496658739,-179.327698,0.000159,2]
[419908377,1775496658749,-151.0,0.000159,2]
[419908378,1775496658759,-453.9471921,0.000159,2]
[419908379,1775496658770,-151.0,0.000159,2]
[419908380,1775496658780,-179.327698,0.000159,2]
[419908381,1775496658791,-151.0,0.000159,2]
[419908382,1775496658801,-179.327698,0.000159,2]
[419908383,1775496658811,-151.0,0.000159,2]
[419908384,1775496658821,-453.9471921,0.000159,2]
[419908385,1775496658831,-179.327698,0.000159,2]
[419908386,1775496658841,-280.584218,0.000159,2]
[419908387,1775496658851,-245.770064,0.000159,2]
[419908388,1775496658862,-280.584218,0.000159,2]
[419908389,1775496658872,-245.770064,0.000159,2]
[419908390,1775496658882,-280.584218,0.000159,2]
[419908391,1775496658892,-200.672779,0.000159,2]
[419908392,1775496658902,-151.0,0.000159,2]
[419908393,1775496658913,-453.9471921,0.000159,2]
[419908394,1775496658923,-245.770064,0.000159,2]
[419908395,1775496658934,-280.584218,0.000159,2]
[419908396,1775496658943,-245.770064,0.000159,2]
[419908397,1775496658954,-766.93164,0.000159,2]
[419908398,1775496658964,-766.93164,0.000159,2]
[419908399,1775496658974,-151.0,0.000159,2]
[419908400,1775496658984,-766.93164,0.000159,2]
[419908401,1775496658993,-766.93164,0.000159,2]
[419908402,1775496659003,-453.9471921,0.000159,2]
[419908403,1775496659013,-453.9471921,0.000159,2]
[419908404,1775496659023,-453.9471921,0.000159,2]
[419908405,1775496659033,-453.9471921,0.000159,2]
[419908406,1775496659043,-1519.04079,0.000159,2]
[419908407,1775496659053,-310.015346,0.000159,2]
[419908408,1775496659064,-453.9471921,0.000159,2]
[419908409,1775496659073,-1519.04079,0.000159,2]
[419908410,1775496659083,-310.015346,0.000159,2]
[419908411,1775496659093,-1519.04079,0.000159,2]
[419908412,1775496659103,-310.015346,0.000159,2]
[419908413,1775496659113,-234.889848,0.000159,2]
[419908414,1775496659123,-1519.04079,0.000159,2]
[419908415,1775496659132,-310.015346,0.000159,2]
[419908416,1775496659142,-151.0,0.000159,2]
[419908417,1775496659152,-234.889848,0.000159,2]
[419908418,1775496659162,-272.199966,0.000159,2]
[419908419,1775496659172,-272.199966,0.000159,2]
[419908420,1775496659182,-234.889848,0.000159,2]
[419908421,1775496659192,-187.818816,0.000159,2]
[419908422,1775496659201,-234.889848,0.000159,2]
[419908423,1775496659210,-272.199966,0.000159,2]
[419908424,1775496659220,-272.199966,0.000159,2]
[419908425,1775496659229,-151.0,0.000159,2]
[419908426,1775496659238,-151.0,0.000159,2]
[419908427,1775496659247,-534.952328,0.000159,2]
[419908428,1775496659257,-534.952328,0.000159,2]
[419908429,1775496659267,-534.952328,0.000159,2]
[419908430,1775496659277,-534.952328,0.000159,2]
[419908431,1775496659286,-375.36655272,0.000159,2]
[419908432,1775496659295,-2402.5798236,0.000159,2]
[419908433,1775496659304,-24269.42299238,0.000159,2]
[419908434,1775496659313,-1442.0,0.00015919,2]
[419908435,1775496659322,-1000.0,0.00015935,2]
[419908436,1775496659331,-1000.0,0.00015937,2]
[419908437,1775496659341,-1442.0,0.00015941,2]
[419908438,1775496659349,-1000.0,0.00015949,2]
[419908439,1775496659358,-4609.0,0.00015956,2]
[419908440,1775496659369,-443.21409104,0.00015959,2]
[419908441,1775496659378,-287.42148692,0.0001596,2]
[419908442,1775496659387,-24492.4422007,0.00015969,2]
[419908443,1775496659397,-113227.51755022,0.00015969,2]
[419908444,1775496660690,-300.77189971,0.00015969,2]
[419908445,1775496660703,-1431.4436837,0.00015969,2]
[419908446,1775496660717,-3731.7761139,0.00015969,2]
[419908447,1775496660738,-359.40327115,0.00015969,2]
[419908448,1775496660755,-1677.25616248,0.00015969,2]
[419908449,1775496660776,-1582.6078709,0.00015969,2]
[419908450,1775496660828,-253.665438,0.00015891,2]
[419908451,1775496660842,-131380.66512234,0.00015969,2]
[419908452,1775496660855,-2040.8126454,0.00015969,2]
[419908453,1775496660868,-151.0,0.00015969,2]
[419908454,1775496660881,-151.0,0.00015969,2]
[419908455,1775496660894,-151.0,0.00015969,2]